fUSD/lending_fUSD_20260601
["ID","MTS","AMOUNT","RATE_DAILY","PERIOD"]
[423623008,1780263053000,-200.0,0.0003329,2]
[423623010,1780263053000,-200.0,0.0003329,2]
[423623004,1780263053000,-200.0,0.0003329,2]
[423622996,1780263053000,-200.0,0.0003329,2]
[423623002,1780263053000,-200.0,0.0003329,2]
[423623007,1780263053000,-200.0,0.0003329,2]
[423623012,1780263053000,-200.0,0.0003329,2]
[423623023,1780263053000,-200.0,0.0003329,2]
[423623015,1780263053000,-200.0,0.0003329,2]
[423623022,1780263053000,-200.0,0.0003329,2]
[423623011,1780263053000,-200.0,0.0003329,2]
[423623014,1780263053000,-200.0,0.0003329,2]
[423623020,1780263053000,-200.0,0.0003329,2]
[423623016,1780263053000,-200.0,0.0003329,2]
[423622971,1780263053000,-151.0,0.0003329,3]
[423623013,1780263053000,-200.0,0.0003329,2]
[423623018,1780263053000,-200.0,0.0003329,2]
[423623019,1780263053000,-200.0,0.0003329,2]
[423623005,1780263053000,-200.0,0.0003329,2]
[423622985,1780263053000,-200.0,0.0003329,2]
[423623021,1780263053000,-200.0,0.0003329,2]
[423622991,1780263053000,-200.0,0.0003329,2]
[423622989,1780263053000,-200.0,0.0003329,2]
[423622963,1780263053000,-151.0,0.0003329,7]
[423622959,1780263053000,-518.696371,0.0003329,7]
[423622961,1780263053000,-151.0,0.0003329,7]
[423623017,1780263053000,-200.0,0.0003329,2]
[423622966,1780263053000,-151.0,0.0003329,7]
[423622969,1780263053000,-151.0,0.0003329,3]
[423622968,1780263053000,-151.0,0.0003329,3]
[423622965,1780263053000,-151.0,0.0003329,7]
[423622967,1780263053000,-151.0,0.0003329,3]
[423622977,1780263053000,-500.0,0.0003329,2]
[423622984,1780263053000,-200.0,0.0003329,2]
[423622974,1780263053000,-151.0,0.0003329,7]
[423622973,1780263053000,-177.060749,0.0003329,3]
[423622962,1780263053000,-518.696371,0.0003329,7]
[423622978,1780263053000,-500.0,0.0003329,2]
[423622981,1780263053000,-500.0,0.0003329,2]
[423622997,1780263053000,-200.0,0.0003329,2]
[423622986,1780263053000,-200.0,0.0003329,2]
[423622998,1780263053000,-200.0,0.0003329,2]
[423622993,1780263053000,-200.0,0.0003329,2]
[423622994,1780263053000,-200.0,0.0003329,2]
[423622980,1780263053000,-500.0,0.0003329,2]
[423622983,1780263053000,-200.0,0.0003329,2]
[423622976,1780263053000,-500.0,0.0003329,2]
[423622987,1780263053000,-200.0,0.0003329,2]
[423622979,1780263053000,-500.0,0.0003329,2]
[423622975,1780263053000,-151.0,0.0003329,7]
[423622982,1780263053000,-530.0,0.0003329,2]
[423623057,1780263054000,-161.0,0.0003375,30]
[423623064,1780263054000,-186.0,0.0003375,30]
[423623053,1780263054000,-3726.57,0.00033736,2]
[423623060,1780263054000,-157.0,0.0003375,30]
[423623049,1780263054000,-251.03,0.00033684,7]
[423623061,1780263054000,-158.0,0.0003375,30]
[423623056,1780263054000,-193.0,0.0003375,30]
[423623058,1780263054000,-383.0,0.0003375,30]
[423623059,1780263054000,-388.0,0.0003375,30]
[423623063,1780263054000,-288.0,0.0003375,30]
[423623054,1780263054000,-1057.31,0.00033736,7]
[423623067,1780263054000,-525.0,0.00033828,2]
[423623065,1780263054000,-218.87046057,0.00033804,14]
[423623062,1780263054000,-626.0,0.0003375,30]
[423623072,1780263054000,-2110.9,0.00033862,7]
[423623071,1780263054000,-253.43,0.00033851,7]
[423623069,1780263054000,-1356.0,0.00033828,2]
[423623066,1780263054000,-1273.0,0.00033828,2]
[423623070,1780263054000,-3639.0,0.00033828,2]
[423623068,1780263054000,-1226.0,0.00033828,2]
[423623074,1780263054000,-340.5,0.000339,30]
[423623078,1780263054000,-241.52,0.00034019,7]
[423623055,1780263054000,-159.0,0.0003375,30]
[423623073,1780263054000,-3347.22,0.000339,14]
[423623052,1780263054000,-1188.0,0.00033715,30]
[423623029,1780263054000,-200.0,0.0003329,2]
[423623050,1780263054000,-545.0,0.00033715,30]
[423623024,1780263054000,-200.0,0.0003329,2]
[423623026,1780263054000,-200.0,0.0003329,2]
[423623037,1780263054000,-200.0,0.0003329,2]
[423623030,1780263054000,-200.0,0.0003329,2]
[423623028,1780263054000,-200.0,0.0003329,2]
[423623033,1780263054000,-200.0,0.0003329,2]
[423623027,1780263054000,-200.0,0.0003329,2]
[423623032,1780263054000,-200.0,0.0003329,2]
[423623025,1780263054000,-200.0,0.0003329,2]
[423623034,1780263054000,-200.0,0.0003329,2]
[423623036,1780263054000,-200.0,0.0003329,2]
[423623051,1780263054000,-156.0,0.00033715,30]
[423623035,1780263054000,-200.0,0.0003329,2]
[423623042,1780263054000,-7635.97,0.000335,2]
[423623044,1780263054000,-25934.64,0.000335,2]
[423623047,1780263054000,-626.0,0.00033545,9]
[423623048,1780263054000,-763.1,0.00033621,30]
[423623040,1780263054000,-1500.0,0.000334,7]
[423623041,1780263054000,-1520.24509226,0.00033425,7]
[423623039,1780263054000,-433.20822678,0.00033358,2]
[423623043,1780263054000,-1234.37497225,0.000335,2]
[423623045,1780263054000,-1000.92020843,0.00033516,2]
[423623046,1780263054000,-236.86,0.00033516,7]
[423623038,1780263054000,-154.0,0.0003329,2]
[423623031,1780263054000,-200.0,0.0003329,2]
[423623076,1780263054000,-701.23,0.00034,30]
[423623080,1780263054000,-1298.03247628,0.00034021,2]
[423623075,1780263054000,-3171.371,0.00033941,37]
[423623108,1780263054000,-3726.57,0.00034421,2]
[423623109,1780263054000,-1057.31,0.00034421,7]
[423623110,1780263054000,-407.0,0.00034453,2]
[423623114,1780263054000,-150.0,0.00034453,2]
[423623113,1780263054000,-150.0,0.00034453,2]
[423623111,1780263054000,-407.0,0.00034453,2]
[423623112,1780263054000,-407.0,0.00034453,2]
[423623117,1780263054000,-400.0,0.00034453,2]
[423623118,1780263054000,-400.0,0.00034453,2]
[423623115,1780263054000,-150.0,0.00034453,2]
[423623119,1780263054000,-5000.0,0.000345,14]
[423623120,1780263054000,-150.73,0.00034521,120]
[423623125,1780263054000,-1188.0,0.00034715,30]
[423623121,1780263054000,-2110.9,0.00034547,7]
[423623122,1780263054000,-626.0,0.00034613,10]
[423623128,1780263054000,-383.0,0.0003475,30]
[423623126,1780263054000,-159.0,0.0003475,30]
[423623129,1780263054000,-388.0,0.0003475,30]
[423623124,1780263054000,-156.0,0.00034715,30]
[423623123,1780263054000,-545.0,0.00034715,30]
[423623127,1780263054000,-193.0,0.0003475,30]
[423623130,1780263054000,-157.0,0.0003475,30]
[423623077,1780263054000,-750.0,0.00034,2]
[423623106,1780263054000,-1406.279124,0.00034358,7]
[423623101,1780263054000,-502.82253,0.00034225,120]
[423623116,1780263054000,-400.0,0.00034453,2]
[423623104,1780263054000,-1406.279124,0.00034358,7]
[423623082,1780263054000,-626.0,0.00034079,9]
[423623105,1780263054000,-1406.279124,0.00034358,7]
[423623085,1780263054000,-1126.35095573,0.00034094,2]
[423623079,1780263054000,-1133.32605408,0.00034021,2]
[423623086,1780263054000,-1821.07058715,0.00034094,2]
[423623083,1780263054000,-1164.22877619,0.00034094,2]
[423623084,1780263054000,-1613.76425717,0.00034094,2]
[423623088,1780263054000,-1890.86064703,0.00034094,2]
[423623098,1780263054000,-150.0,0.0003419,2]
[423623096,1780263054000,-512.3,0.00034182,7]
[423623089,1780263054000,-1168.19369965,0.00034094,2]
[423623091,1780263054000,-1076.64376223,0.00034094,2]
[423623081,1780263054000,-1108.59324989,0.00034021,2]
[423623090,1780263054000,-1250.12443683,0.00034094,2]
[423623102,1780263054000,-2000.0,0.00034247,30]
[423623103,1780263054000,-247.8,0.00034354,7]
[423623100,1780263054000,-540.237503,0.00034225,120]
[423623107,1780263054000,-1406.279124,0.00034358,7]
[423623095,1780263054000,-1106.40579129,0.00034147,2]
[423623099,1780263054000,-459.45332818,0.000342,27]
[423623094,1780263054000,-7244.9602,0.00034137,40]
[423623087,1780263054000,-1967.6267429,0.00034094,2]
[423623092,1780263054000,-1097.904522,0.00034094,2]
[423623093,1780263054000,-4648.3,0.00034132,30]
[423623097,1780263054000,-251.03,0.00034186,7]
[423623175,1780263055000,-500.0,0.00035585,2]
[423623170,1780263055000,-500.0,0.00035585,2]
[423623180,1780263055000,-300.0,0.00035606,2]
[423623181,1780263055000,-300.0,0.00035606,2]
[423623179,1780263055000,-300.0,0.00035606,2]
[423623169,1780263055000,-500.0,0.00035572,120]
[423623166,1780263055000,-3643.32431722,0.00035452,14]
[423623164,1780263055000,-2000.0,0.000354,7]
[423623165,1780263055000,-1046.2056,0.000354,120]
[423623158,1780263055000,-800.0,0.00035397,13]
[423623163,1780263055000,-800.0,0.00035397,13]
[423623167,1780263055000,-1676.44,0.00035549,2]
[423623174,1780263055000,-500.0,0.00035585,2]
[423623188,1780263055000,-300.0,0.00035606,2]
[423623176,1780263055000,-579.49,0.00035585,2]
[423623168,1780263055000,-500.0,0.00035572,120]
[423623172,1780263055000,-500.0,0.00035585,2]
[423623173,1780263055000,-869.24,0.00035585,2]
[423623177,1780263055000,-270.602249,0.00035604,7]
[423623178,1780263055000,-1097.16968584,0.00035606,2]
[423623182,1780263055000,-300.0,0.00035606,2]
[423623186,1780263055000,-300.0,0.00035606,2]
[423623184,1780263055000,-300.0,0.00035606,2]
[423623185,1780263055000,-300.0,0.00035606,2]
[423623187,1780263055000,-300.0,0.00035606,2]
[423623162,1780263055000,-800.0,0.00035397,13]
[423623171,1780263055000,-500.0,0.00035585,2]
[423623160,1780263055000,-800.0,0.00035397,13]
[423623142,1780263055000,-632.73300182,0.00035,7]
[423623159,1780263055000,-800.0,0.00035397,13]
[423623192,1780263055000,-493.71853303,0.00035606,2]
[423623132,1780263055000,-626.0,0.0003475,30]
[423623131,1780263055000,-158.0,0.0003475,30]
[423623135,1780263055000,-1500.0,0.00034795,2]
[423623141,1780263055000,-1042433.86195223,0.000349,3]
[423623133,1780263055000,-288.0,0.0003475,30]
[423623137,1780263055000,-10259.85300746,0.00034841,5]
[423623134,1780263055000,-186.0,0.0003475,30]
[423623139,1780263055000,-151.0,0.00034897,14]
[423623138,1780263055000,-1001.0,0.00034849,120]
[423623144,1780263055000,-182.1819368,0.00035,120]
[423623143,1780263055000,-1954.28643989,0.00035,2]
[423623145,1780263055000,-161.08417232,0.00035,30]
[423623136,1780263055000,-4917.82941975,0.00034841,5]
[423623140,1780263055000,-151.0,0.00034897,14]
[423623147,1780263055000,-1265.46600362,0.00035,7]
[423623155,1780263055000,-2110.9,0.00035232,7]
[423623156,1780263055000,-800.0,0.00035397,13]
[423623146,1780263055000,-545246.31332924,0.00035,2]
[423623148,1780263055000,-1000.65067019,0.00035,14]
[423623151,1780263055000,-1000.0,0.00035028,3]
[423623150,1780263055000,-800.0,0.00035,3]
[423623149,1780263055000,-150.0,0.00035,4]
[423623154,1780263055000,-626.0,0.00035147,10]
[423623152,1780263055000,-3726.58,0.00035106,2]
[423623153,1780263055000,-1057.32,0.00035106,7]
[423623157,1780263055000,-800.0,0.00035397,13]
[423623161,1780263055000,-800.0,0.00035397,13]
[423623191,1780263055000,-300.0,0.00035606,2]
[423623206,1780263055000,-727.57003954,0.00035606,2]
[423623193,1780263055000,-493.38232728,0.00035606,2]
[423623220,1780263055000,-1264.80678045,0.00035606,2]
[423623227,1780263055000,-300.0,0.00035606,2]
[423623223,1780263055000,-527.99519721,0.00035606,2]
[423623224,1780263055000,-300.0,0.00035606,2]
[423623225,1780263055000,-300.0,0.00035606,2]
[423623226,1780263055000,-300.0,0.00035606,2]
[423623229,1780263055000,-950.98229606,0.00035606,2]
[423623230,1780263055000,-1800.99236666,0.00035606,2]
[423623240,1780263055000,-300.0,0.00035606,2]
[423623234,1780263055000,-1149.64153705,0.00035606,2]
[423623235,1780263055000,-310.25089904,0.00035606,2]
[423623233,1780263055000,-300.0,0.00035606,2]
[423623217,1780263055000,-300.000001,0.00035606,2]
[423623237,1780263055000,-300.0,0.00035606,2]
[423623236,1780263055000,-300.0,0.00035606,2]
[423623232,1780263055000,-300.0,0.00035606,2]
[423623239,1780263055000,-300.0,0.00035606,2]
[423623238,1780263055000,-1636.24753201,0.00035606,2]
[423623242,1780263055000,-595.21497888,0.00035606,2]
[423623249,1780263055000,-452.85549676,0.00035606,2]
[423623248,1780263055000,-300.0,0.00035606,2]
[423623245,1780263055000,-464.81458028,0.00035606,2]
[423623247,1780263055000,-578.77492127,0.00035606,2]
[423623246,1780263055000,-300.0,0.00035606,2]
[423623243,1780263055000,-300.0,0.00035606,2]
[423623189,1780263055000,-300.0,0.00035606,2]
[423623231,1780263055000,-300.0,0.00035606,2]
[423623222,1780263055000,-344.67640552,0.00035606,2]
[423623241,1780263055000,-300.0,0.00035606,2]
[423623221,1780263055000,-300.0,0.00035606,2]
[423623228,1780263055000,-866.17918798,0.00035606,2]
[423623190,1780263055000,-300.0,0.00035606,2]
[423623195,1780263055000,-300.0,0.00035606,2]
[423623205,1780263055000,-535.11946239,0.00035606,2]
[423623196,1780263055000,-300.0,0.00035606,2]
[423623197,1780263055000,-300.0,0.00035606,2]
[423623194,1780263055000,-300.0,0.00035606,2]
[423623198,1780263055000,-605.70713704,0.00035606,2]
[423623203,1780263055000,-403.31610524,0.00035606,2]
[423623200,1780263055000,-300.0,0.00035606,2]
[423623199,1780263055000,-300.0,0.00035606,2]
[423623201,1780263055000,-300.0,0.00035606,2]
[423623204,1780263055000,-1069.16901834,0.00035606,2]
[423623183,1780263055000,-300.0,0.00035606,2]
[423623210,1780263055000,-300.0,0.00035606,2]
[423623202,1780263055000,-423.84456931,0.00035606,2]
[423623218,1780263055000,-300.0,0.00035606,2]
[423623212,1780263055000,-300.0,0.00035606,2]
[423623216,1780263055000,-300.0,0.00035606,2]
[423623211,1780263055000,-301.20088581,0.00035606,2]
[423623207,1780263055000,-300.0,0.00035606,2]
[423623219,1780263055000,-300.0,0.00035606,2]
[423623209,1780263055000,-300.0,0.00035606,2]
[423623214,1780263055000,-300.0,0.00035606,2]
[423623208,1780263055000,-302.42365621,0.00035606,2]
[423623213,1780263055000,-300.0,0.00035606,2]
[423623215,1780263055000,-300.0,0.00035606,2]
[423623244,1780263055000,-300.0,0.00035606,2]
[423623290,1780263056000,-535.11946239,0.00035606,2]
[423623280,1780263056000,-300.0,0.00035606,2]
[423623284,1780263056000,-605.70713704,0.00035606,2]
[423623285,1780263056000,-300.0,0.00035606,2]
[423623281,1780263056000,-300.0,0.00035606,2]
[423623289,1780263056000,-1069.16901834,0.00035606,2]
[423623278,1780263056000,-493.71853303,0.00035606,2]
[423623286,1780263056000,-300.0,0.00035606,2]
[423623287,1780263056000,-300.0,0.00035606,2]
[423623283,1780263056000,-300.0,0.00035606,2]
[423623279,1780263056000,-300.0,0.00035606,2]
[423623299,1780263056000,-300.0,0.00035606,2]
[423623292,1780263056000,-300.0,0.00035606,2]
[423623302,1780263056000,-300.0,0.00035606,2]
[423623296,1780263056000,-300.0,0.00035606,2]
[423623294,1780263056000,-300.0,0.00035606,2]
[423623293,1780263056000,-302.42365621,0.00035606,2]
[423623291,1780263056000,-727.57003954,0.00035606,2]
[423623300,1780263056000,-300.0,0.00035606,2]
[423623295,1780263056000,-302.53158504,0.00035606,2]
[423623297,1780263056000,-301.20088581,0.00035606,2]
[423623298,1780263056000,-300.0,0.00035606,2]
[423623288,1780263056000,-403.31610524,0.00035606,2]
[423623301,1780263056000,-300.0,0.00035606,2]
[423623282,1780263056000,-300.0,0.00035606,2]
[423623274,1780263056000,-300.0,0.00035606,2]
[423623263,1780263056000,-300.0,0.00035606,2]
[423623273,1780263056000,-300.0,0.00035606,2]
[423623303,1780263056000,-300.0,0.00035606,2]
[423623250,1780263056000,-300.0,0.00035606,2]
[423623252,1780263056000,-300.0,0.00035606,2]
[423623251,1780263056000,-300.0,0.00035606,2]
[423623260,1780263056000,-300.0,0.00035606,2]
[423623255,1780263056000,-485.1231417,0.00035606,2]
[423623253,1780263056000,-300.0,0.00035606,2]
[423623264,1780263056000,-1097.16968584,0.00035606,2]
[423623258,1780263056000,-300.0,0.00035606,2]
[423623262,1780263056000,-300.0,0.00035606,2]
[423623261,1780263056000,-300.0,0.00035606,2]
[423623254,1780263056000,-300.0,0.00035606,2]
[423623257,1780263056000,-300.0,0.00035606,2]
[423623265,1780263056000,-300.0,0.00035606,2]
[423623266,1780263056000,-300.0,0.00035606,2]
[423623256,1780263056000,-310.50110747,0.00035606,2]
[423623259,1780263056000,-300.0,0.00035606,2]
[423623268,1780263056000,-300.0,0.00035606,2]
[423623270,1780263056000,-300.0,0.00035606,2]
[423623271,1780263056000,-300.0,0.00035606,2]
[423623269,1780263056000,-300.0,0.00035606,2]
[423623267,1780263056000,-300.0,0.00035606,2]
[423623277,1780263056000,-300.0,0.00035606,2]
[423623275,1780263056000,-300.0,0.00035606,2]
[423623276,1780263056000,-300.51843436,0.00035606,2]
[423623272,1780263056000,-300.0,0.00035606,2]
[423623305,1780263056000,-1264.80678045,0.00035606,2]
[423623304,1780263056000,-300.0,0.00035606,2]
[423623306,1780263056000,-300.0,0.00035606,2]
[423623335,1780263056000,-300.0,0.00035606,2]
[423623336,1780263056000,-300.0,0.00035606,2]
[423623339,1780263056000,-4518.05742312,0.0003561,2]
[423623344,1780263056000,-260.8386003,0.00035616,2]
[423623342,1780263056000,-150.0,0.00035616,2]
[423623343,1780263056000,-150.0,0.00035616,2]
[423623340,1780263056000,-2000.0,0.00035615,25]
[423623341,1780263056000,-150.0,0.00035616,2]
[423623345,1780263056000,-500.0,0.00035616,7]
[423623348,1780263056000,-500.0,0.00035616,7]
[423623347,1780263056000,-500.0,0.00035616,7]
[423623346,1780263056000,-500.0,0.00035616,7]
[423623350,1780263056000,-500.0,0.00035616,7]
[423623355,1780263056000,-500.0,0.00035616,7]
[423623351,1780263056000,-570.69841123,0.00035616,7]
[423623352,1780263056000,-500.0,0.00035616,7]
[423623349,1780263056000,-500.0,0.00035616,7]
[423623356,1780263056000,-500.0,0.00035616,7]
[423623354,1780263056000,-500.0,0.00035616,7]
[423623353,1780263056000,-500.0,0.00035616,7]
[423623358,1780263056000,-500.0,0.00035616,7]
[423623307,1780263056000,-344.67640552,0.00035606,2]
[423623359,1780263056000,-500.0,0.00035616,7]
[423623360,1780263056000,-500.0,0.00035616,7]
[423623361,1780263056000,-500.0,0.00035616,7]
[423623333,1780263056000,-300.0,0.00035606,2]
[423623338,1780263056000,-171161.65041697,0.0003561,2]
[423623357,1780263056000,-500.0,0.00035616,7]
[423623330,1780263056000,-464.81458028,0.00035606,2]
[423623332,1780263056000,-578.77492127,0.00035606,2]
[423623310,1780263056000,-300.0,0.00035606,2]
[423623313,1780263056000,-866.17918798,0.00035606,2]
[423623311,1780263056000,-300.0,0.00035606,2]
[423623308,1780263056000,-527.99519721,0.00035606,2]
[423623312,1780263056000,-300.0,0.00035606,2]
[423623314,1780263056000,-950.98229606,0.00035606,2]
[423623325,1780263056000,-300.0,0.00035606,2]
[423623317,1780263056000,-300.0,0.00035606,2]
[423623326,1780263056000,-300.0,0.00035606,2]
[423623323,1780263056000,-1636.24753201,0.00035606,2]
[423623315,1780263056000,-1800.99236666,0.00035606,2]
[423623309,1780263056000,-300.0,0.00035606,2]
[423623318,1780263056000,-300.0,0.00035606,2]
[423623324,1780263056000,-300.0,0.00035606,2]
[423623331,1780263056000,-300.0,0.00035606,2]
[423623329,1780263056000,-300.0,0.00035606,2]
[423623327,1780263056000,-595.21497888,0.00035606,2]
[423623328,1780263056000,-300.0,0.00035606,2]
[423623334,1780263056000,-452.85549676,0.00035606,2]
[423623320,1780263056000,-310.25089904,0.00035606,2]
[423623322,1780263056000,-300.0,0.00035606,2]
[423623321,1780263056000,-300.0,0.00035606,2]
[423623316,1780263056000,-300.0,0.00035606,2]
[423623319,1780263056000,-1149.64153705,0.00035606,2]
[423623337,1780263056000,-436.5,0.00035608,120]
[423623393,1780263057000,-200.0,0.00035851,5]
[423623389,1780263057000,-288.0,0.0003575,30]
[423623398,1780263057000,-407.0,0.00035951,2]
[423623392,1780263057000,-681.762,0.00035837,2]
[423623390,1780263057000,-186.0,0.0003575,30]
[423623391,1780263057000,-13635.2411,0.00035837,2]
[423623388,1780263057000,-626.0,0.0003575,30]
[423623394,1780263057000,-200.0,0.00035852,5]
[423623395,1780263057000,-4648.3,0.00035898,30]
[423623399,1780263057000,-150.0,0.00035951,2]
[423623404,1780263057000,-400.0,0.00035951,2]
[423623397,1780263057000,-407.0,0.00035951,2]
[423623400,1780263057000,-169.79743012,0.00035951,2]
[423623402,1780263057000,-150.0,0.00035951,2]
[423623401,1780263057000,-150.0,0.00035951,2]
[423623403,1780263057000,-400.0,0.00035951,2]
[423623405,1780263057000,-13635.2411,0.00035965,2]
[423623406,1780263057000,-25129.79864492,0.00036,2]
[423623409,1780263057000,-862.7794474,0.00036,2]
[423623387,1780263057000,-158.0,0.0003575,30]
[423623410,1780263057000,-800.0,0.00036,2]
[423623396,1780263057000,-150.0,0.00035899,2]
[423623385,1780263057000,-383.0,0.0003575,30]
[423623368,1780263057000,-500.0,0.00035616,7]
[423623381,1780263057000,-156.0,0.00035715,30]
[423623408,1780263057000,-334.54266907,0.00036,120]
[423623363,1780263057000,-500.0,0.00035616,7]
[423623362,1780263057000,-500.0,0.00035616,7]
[423623364,1780263057000,-500.0,0.00035616,7]
[423623365,1780263057000,-500.0,0.00035616,7]
[423623367,1780263057000,-500.0,0.00035616,7]
[423623366,1780263057000,-563.41093458,0.00035616,7]
[423623375,1780263057000,-500.0,0.00035616,7]
[423623371,1780263057000,-500.0,0.00035616,7]
[423623369,1780263057000,-500.0,0.00035616,7]
[423623382,1780263057000,-1188.0,0.00035715,30]
[423623373,1780263057000,-500.0,0.00035616,7]
[423623374,1780263057000,-500.0,0.00035616,7]
[423623370,1780263057000,-500.0,0.00035616,7]
[423623376,1780263057000,-151.686969,0.00035616,2]
[423623377,1780263057000,-344.88,0.00035616,30]
[423623379,1780263057000,-2319.0,0.00035709,11]
[423623380,1780263057000,-545.0,0.00035715,30]
[423623378,1780263057000,-626.0,0.00035681,11]
[423623386,1780263057000,-388.0,0.0003575,30]
[423623383,1780263057000,-159.0,0.0003575,30]
[423623384,1780263057000,-193.0,0.0003575,30]
[423623372,1780263057000,-500.0,0.00035616,7]
[423623412,1780263057000,-1266.96371416,0.00036017,2]
[423623421,1780263057000,-1335.07851389,0.00036094,2]
[423623414,1780263057000,-13635.2411,0.00036093,2]
[423623442,1780263057000,-2000.0,0.00036639,120]
[423623439,1780263057000,-2319.0,0.000366,11]
[423623438,1780263057000,-1546.0,0.00036551,7]
[423623445,1780263057000,-2000.0,0.000367,7]
[423623436,1780263057000,-1046.2056,0.000365,120]
[423623440,1780263057000,-2319.0,0.000366,11]
[423623446,1780263057000,-16385.8472,0.00036708,30]
[423623449,1780263057000,-626.0,0.00036748,12]
[423623453,1780263057000,-1641.92098271,0.000368,2]
[423623447,1780263057000,-13635.2411,0.00036733,2]
[423623452,1780263057000,-500.0,0.00036767,2]
[423623450,1780263057000,-157.4,0.00036759,60]
[423623448,1780263057000,-681.762,0.00036733,2]
[423623454,1780263057000,-384.45319949,0.00036822,2]
[423623451,1780263057000,-2319.0,0.00036765,11]
[423623455,1780263057000,-1273.0,0.00036828,2]
[423623456,1780263057000,-349.0,0.00036828,2]
[423623458,1780263057000,-1356.0,0.00036828,2]
[423623457,1780263057000,-1226.0,0.00036828,2]
[423623459,1780263057000,-3639.0,0.00036828,2]
[423623407,1780263057000,-462.7321229,0.00036,2]
[423623444,1780263057000,-292.86,0.00036691,30]
[423623443,1780263057000,-425.38500914,0.00036661,2]
[423623460,1780263057000,-157.4,0.00036859,60]
[423623441,1780263057000,-13635.2411,0.00036605,2]
[423623411,1780263057000,-200.0,0.00036003,10]
[423623415,1780263057000,-1330.54717279,0.00036094,2]
[423623413,1780263057000,-163.0,0.00036046,11]
[423623417,1780263057000,-1287.25823512,0.00036094,2]
[423623419,1780263057000,-2248.7162776,0.00036094,2]
[423623416,1780263057000,-1844.30200819,0.00036094,2]
[423623437,1780263057000,-763.1,0.00036526,30]
[423623422,1780263057000,-1230.45001398,0.00036094,2]
[423623423,1780263057000,-1428.71364209,0.00036094,2]
[423623418,1780263057000,-2081.22352817,0.00036094,2]
[423623424,1780263057000,-1254.74802514,0.00036094,2]
[423623420,1780263057000,-2160.9835966,0.00036094,2]
[423623428,1780263057000,-626.0,0.00036214,11]
[423623429,1780263057000,-13635.2411,0.00036221,2]
[423623430,1780263057000,-343.1,0.00036224,7]
[423623426,1780263057000,-1264.46376147,0.00036149,2]
[423623434,1780263057000,-13635.2411,0.00036477,2]
[423623435,1780263057000,-383.18710147,0.00036487,2]
[423623432,1780263057000,-4999.999999,0.000364,120]
[423623427,1780263057000,-512.3,0.00036153,30]
[423623433,1780263057000,-800.57,0.00036406,7]
[423623425,1780263057000,-7244.9602,0.00036137,50]
[423623431,1780263057000,-13635.2411,0.00036349,2]
[423623502,1780263058000,-151.0,0.00036887,7]
[423623491,1780263058000,-151.0,0.00036887,7]
[423623492,1780263058000,-151.0,0.00036887,7]
[423623488,1780263058000,-1836.785998,0.00036887,7]
[423623485,1780263058000,-1334.460671,0.00036887,7]
[423623483,1780263058000,-288.517632,0.00036887,7]
[423623489,1780263058000,-151.0,0.00036887,7]
[423623490,1780263058000,-151.0,0.00036887,7]
[423623493,1780263058000,-151.0,0.00036887,7]
[423623505,1780263058000,-189.322484,0.00036887,7]
[423623495,1780263058000,-2105.252162,0.00036887,7]
[423623498,1780263058000,-2105.252162,0.00036887,7]